[Event "Championnat du monde jeunes U12"]
[Date "2024.11.22"]
[White "Platonovs, Nikolajs"]
[Black "Golubovic, Erik"]
[WhiteElo "1969"]
[BlackElo "2147"]
[Round "7.13"]
[Result "1-0"]
[TimeControl "5400+30"]

1. e4 {[%clk 1:30:58]} 1... c5 {[%clk 1:30:44]} 2. Nf3 {[%clk 1:31:25]} 2... d6
{[%clk 1:30:50]} 3. d4 {[%clk 1:31:50]} 3... cxd4 {[%clk 1:31:15]} 4. Nxd4
{[%clk 1:32:14]} 4... Nf6 {[%clk 1:31:30]} 5. Nc3 {[%clk 1:32:40]} 5... a6
{[%clk 1:31:20]} 6. Be3 {[%clk 1:33:04]} 6... e5 {[%clk 1:31:00]} 7. Nb3 {[%clk
1:33:30]} 7... Be7 {[%clk 1:31:00]} 8. f3 {[%clk 1:33:56]} 8... Be6 {[%clk
1:30:44]} 9. Qd2 {[%clk 1:34:18]} 9... O-O {[%clk 1:29:09]} 10. O-O-O {[%clk
1:34:28]} 10... Nbd7 {[%clk 1:29:10]} 11. g4 {[%clk 1:34:39]} 11... b5 {[%clk
1:29:00]} 12. g5 {[%clk 1:32:09]} 12... Nh5 {[%clk 1:28:49]} 13. Nd5 {[%clk
1:32:25]} 13... Bxd5 {[%clk 1:28:35]} 14. exd5 {[%clk 1:32:49]} 14... f6 {[%clk
1:28:18]} 15. gxf6 {[%clk 1:33:09]} 15... Bxf6 {[%clk 1:28:15]} 16. Na5 {[%clk
1:33:09]} 16... Qe8 {[%clk 1:27:38]} 17. Nc6 {[%clk 1:32:51]} 17... Bd8 {[%clk
1:27:11]} 18. Nxd8 {[%clk 1:13:41]} 18... Qxd8 {[%clk 1:27:24]} 19. Bh3 {[%clk
1:13:45]} 19... Nf4 {[%clk 1:23:47]} 20. Be6+ {[%clk 1:13:12]} 20... Kh8 {[%clk
1:23:31]} 21. Rhg1 {[%clk 1:07:05]} 21... Rf6 {[%clk 1:12:08]} 22. Bxf4 {[%clk
1:02:04]} 22... Rxf4 {[%clk 1:09:27]} 23. Rg4 {[%clk 0:57:23]} 23... Rxg4 {[%clk
1:05:27]} 24. fxg4 {[%clk 0:54:45]} 24... Nc5 {[%clk 0:45:16]} 25. Rf1 {[%clk
0:52:24]} 25... Qe8 {[%clk 0:42:49]} 26. Qg2 {[%clk 0:43:43]} 26... Rd8 {[%clk
0:38:07]} 27. Bf5 {[%clk 0:43:30]} 27... Qe7 {[%clk 0:35:46]} 28. Be4 {[%clk
0:37:37]} 28... Rf8 {[%clk 0:31:03]} 29. Rxf8+ {[%clk 0:33:18]} 29... Qxf8
{[%clk 0:31:19]} 30. Qf3 {[%clk 0:33:38]} 30... Qe7 {[%clk 0:26:34]} 31. Kb1
{[%clk 0:31:54]} 31... g6 {[%clk 0:24:54]} 32. c3 {[%clk 0:25:15]} 32... Kg7
{[%clk 0:24:28]} 33. Bc2 {[%clk 0:24:22]} 33... Qh4 {[%clk 0:15:42]} 34. Qe2
{[%clk 0:18:01]} 34... Qg5 {[%clk 0:15:05]} 35. b4 {[%clk 0:12:58]} 35... Nd7
{[%clk 0:14:34]} 36. a4 {[%clk 0:13:21]} 36... Nf6 {[%clk 0:07:53]} 37. axb5
{[%clk 0:13:18]} 37... axb5 {[%clk 0:08:12]} 38. Qxb5 {[%clk 0:13:28]} 38... Qd2
{[%clk 0:06:27]} 39. g5 {[%clk 0:11:06]} 39... Qxg5 {[%clk 0:05:58]} 40. Qb7+
{[%clk 0:10:46]} 40... Kh6 {[%clk 0:05:30]} 41. Qe7 {[%clk 0:10:28]} 41... Qg1+
{[%clk 0:03:15]} 42. Kb2 {[%clk 0:10:55]} 42... Nxd5 {[%clk 0:03:21]} 43. Qf8+
{[%clk 0:11:24]} 43... Kg5 {[%clk 0:03:27]} 44. Qxd6 {[%clk 0:11:46]} 44... Ne3
{[%clk 0:02:50]} 45. Qxe5+ {[%clk 0:12:10]} 45... Kg4 {[%clk 0:00:41]} 46. Qe6+
{[%clk 0:12:11]} 46... Kg5 {[%clk 0:00:58]} 47. Qe7+ {[%clk 0:12:22]} 47... Kh6
{[%clk 0:00:52]} 48. Qh4+ {[%clk 0:12:40]} 48... Kg7 {[%clk 0:01:20]} 49. Qd4+
{[%clk 0:12:52]} 49... Kh6 {[%clk 0:00:56]} 50. Qh4+ {[%clk 0:12:52]} 50... Kg7
{[%clk 0:01:23]} 51. b5 {[%clk 0:11:08]} 51... Nd5 {[%clk 0:00:49]} 52. Qd4+
{[%clk 0:11:09]} 52... Qxd4 {[%clk 0:01:17]} 53. cxd4 {[%clk 0:11:37]} 53... Kf6
{[%clk 0:00:53]} 54. Bb3 {[%clk 0:11:17]} 54... Nb6 {[%clk 0:00:52]} 55. Kc3
{[%clk 0:11:12]} 55... Ke7 {[%clk 0:00:53]} 56. Kb4 {[%clk 0:11:32]} 56... Kd6
{[%clk 0:01:14]} 57. Bg8 {[%clk 0:11:48]} 57... h6 {[%clk 0:01:22]} 58. Ka5
{[%clk 0:12:08]} 58... Kc7 {[%clk 0:01:33]} 59. Be6 {[%clk 0:12:16]} 59... g5
{[%clk 0:01:03]} 60. h3 {[%clk 0:11:22]} 60... h5 {[%clk 0:00:47]} 61. Ka6
{[%clk 0:06:28]} 61... Na4 {[%clk 0:00:33]} 62. Bb3 {[%clk 0:05:47]} 62... Nb6
{[%clk 0:00:55]} 63. Bd1 {[%clk 0:06:11]} 63... g4 {[%clk 0:00:40]} 64. hxg4
{[%clk 0:06:36]} 64... hxg4 {[%clk 0:01:09]} 65. Bxg4 {[%clk 0:06:58]} 65... Na4
{[%clk 0:00:46]} 66. Be6 {[%clk 0:06:28]} 66... Nb6 {[%clk 0:00:39]} 67. Ka7
{[%clk 0:06:10]} 67... Na4 {[%clk 0:00:40]} 68. d5 {[%clk 0:06:26]} 68... Nc3
{[%clk 0:00:36]} 69. b6+ {[%clk 0:06:49]} 69... Kd6 {[%clk 0:00:41]} 70. b7
{[%clk 0:07:08]} 1-0

[Variant "Standard"]
[Site "Europe Echecs"]

[Event "Championnat du monde jeunes U12"]
[Date "2024.11.22"]
[White "Belin, Anton"]
[Black "Qu, Haoming"]
[WhiteElo "2138"]
[BlackElo "1969"]
[Round "7.14"]
[Result "1-0"]
[TimeControl "5400+30"]

1. e4 {[%clk 1:30:53]} 1... d5 {[%clk 1:30:43]} 2. exd5 {[%clk 1:30:52]} 2...
Qxd5 {[%clk 1:31:05]} 3. Nc3 {[%clk 1:30:47]} 3... Qd6 {[%clk 1:30:59]} 4. d4
{[%clk 1:30:29]} 4... c6 {[%clk 1:30:51]} 5. Nf3 {[%clk 1:29:45]} 5... Bf5
{[%clk 1:30:58]} 6. Be3 {[%clk 1:26:36]} 6... Nf6 {[%clk 1:30:29]} 7. Bc4 {[%clk
1:21:33]} 7... e6 {[%clk 1:28:56]} 8. Qd2 {[%clk 1:18:58]} 8... Qd8 {[%clk
1:26:32]} 9. h3 {[%clk 1:15:17]} 9... Bb4 {[%clk 1:25:16]} 10. Bd3 {[%clk
1:06:22]} 10... Nd5 {[%clk 1:06:24]} 11. O-O {[%clk 1:00:18]} 11... Bxd3 {[%clk
1:00:27]} 12. Qxd3 {[%clk 1:00:13]} 12... Be7 {[%clk 0:55:34]} 13. Rae1 {[%clk
0:55:23]} 13... Nd7 {[%clk 0:52:15]} 14. Ne4 {[%clk 0:52:14]} 14... b5 {[%clk
0:36:42]} 15. Bd2 {[%clk 0:43:16]} 15... Rb8 {[%clk 0:32:16]} 16. Re2 {[%clk
0:37:31]} 16... O-O {[%clk 0:20:48]} 17. Ne5 {[%clk 0:29:33]} 17... Nxe5 {[%clk
0:15:26]} 18. dxe5 {[%clk 0:29:48]} 18... Kh8 {[%clk 0:15:35]} 19. f4 {[%clk
0:25:54]} 19... g6 {[%clk 0:13:23]} 20. Kh1 {[%clk 0:18:48]} 20... c5 {[%clk
0:11:24]} 21. b3 {[%clk 0:14:20]} 21... Nb4 {[%clk 0:09:02]} 22. Bxb4 {[%clk
0:13:32]} 22... cxb4 {[%clk 0:09:11]} 23. Qe3 {[%clk 0:12:56]} 23... Qd5 {[%clk
0:07:39]} 24. Qxa7 {[%clk 0:11:22]} 24... Rb7 {[%clk 0:07:59]} 25. Qe3 {[%clk
0:11:36]} 25... Ra8 {[%clk 0:07:59]} 26. Rd2 {[%clk 0:11:16]} 26... Qc6 {[%clk
0:07:47]} 27. Rfd1 {[%clk 0:10:34]} 27... Kg7 {[%clk 0:07:09]} 28. Nf6 {[%clk
0:09:24]} 28... Rxa2 {[%clk 0:05:15]} 29. f5 {[%clk 0:04:53]} 29... Rxc2 {[%clk
0:03:01]} 30. Nh5+ {[%clk 0:03:46]} 30... Kg8 {[%clk 0:02:05]} 31. Qh6 {[%clk
0:02:33]} 31... Rxd2 {[%clk 0:02:17]} 32. Qg7# {[%clk 0:02:26]} 1-0

[Variant "Standard"]
[Site "Europe Echecs"]

[Event "Championnat du monde jeunes U12"]
[Date "2024.11.22"]
[White "Abdsattar, Alisher"]
[Black "Yerzhanuly Yernur"]
[WhiteElo "2082"]
[BlackElo "1917"]
[Round "7.15"]
[Result "1/2-1/2"]
[TimeControl "5400+30"]

1. e4 {[%clk 1:30:56]} 1... e6 {[%clk 1:30:45]} 2. d4 {[%clk 1:31:21]} 2... d5
{[%clk 1:31:11]} 3. Nc3 {[%clk 1:31:45]} 3... Bb4 {[%clk 1:31:28]} 4. Ne2 {[%clk
1:32:10]} 4... dxe4 {[%clk 1:31:49]} 5. a3 {[%clk 1:32:36]} 5... Be7 {[%clk
1:31:43]} 6. Nxe4 {[%clk 1:33:01]} 6... Nf6 {[%clk 1:32:08]} 7. Nxf6+ Bxf6
{[%clk 1:32:31]} 8. Be3 {[%clk 1:33:53]} 8... Nc6 {[%clk 1:33:01]} 9. Qd3 {[%clk
1:33:48]} 9... b6 {[%clk 1:25:36]} 10. g4 {[%clk 1:30:26]} 10... Bb7 {[%clk
1:17:57]} 11. Bg2 {[%clk 1:28:52]} 11... O-O {[%clk 1:15:55]} 12. Rg1 {[%clk
1:28:07]} 12... g6 {[%clk 1:08:12]} 13. O-O-O {[%clk 1:25:14]} 13... Qd7 {[%clk
1:03:05]} 14. Nf4 {[%clk 1:15:02]} 14... Rad8 {[%clk 0:49:03]} 15. d5 {[%clk
1:06:13]} 15... Ne5 {[%clk 0:49:26]} 16. Qe2 {[%clk 1:02:34]} 16... exd5 {[%clk
0:48:00]} 17. Nxd5 {[%clk 1:00:27]} 17... Bxd5 {[%clk 0:47:58]} 18. Bxd5 {[%clk
1:00:44]} 18... Qa4 {[%clk 0:47:05]} 19. g5 {[%clk 0:54:46]} 19... Bg7 {[%clk
0:46:54]} 20. Rd4 {[%clk 0:33:34]} 20... Qe8 {[%clk 0:25:29]} 21. Rgd1 {[%clk
0:33:00]} 21... c6 {[%clk 0:18:00]} 22. Bb3 {[%clk 0:30:14]} 22... Qe7 {[%clk
0:16:09]} 23. Re4 {[%clk 0:19:38]} 23... Rxd1+ {[%clk 0:14:51]} 24. Qxd1 {[%clk
0:19:27]} 24... Rd8 {[%clk 0:15:11]} 25. Qe2 {[%clk 0:18:22]} 25... Qd7 {[%clk
0:09:45]} 26. Bd4 {[%clk 0:16:20]} 26... Nd3+ {[%clk 0:09:58]} 27. cxd3 {[%clk
0:15:56]} 27... Bxd4 {[%clk 0:10:22]} 28. Re7 {[%clk 0:15:56]} 28... Qd6 {[%clk
0:10:26]} 29. Rxf7 {[%clk 0:15:27]} 29... Kh8 {[%clk 0:10:39]} 30. Qf3 {[%clk
0:14:05]} 30... Bg7 {[%clk 0:09:20]} 31. Qe3 {[%clk 0:12:18]} 31... Rf8 {[%clk
0:04:38]} 32. Rxf8+ {[%clk 0:11:00]} 32... Qxf8 {[%clk 0:04:47]} 33. Qe6 {[%clk
0:11:18]} 33... c5 {[%clk 0:04:35]} 34. Kb1 {[%clk 0:10:53]} 34... b5 {[%clk
0:04:01]} 35. Bd5 {[%clk 0:11:09]} 35... Qb8 {[%clk 0:03:18]} 36. h4 {[%clk
0:07:37]} 36... c4 {[%clk 0:02:07]} 37. d4 {[%clk 0:07:07]} 37... Bxd4 {[%clk
0:01:53]} 38. f4 {[%clk 0:07:29]} 38... Qf8 {[%clk 0:01:30]} 39. Ka2 {[%clk
0:07:43]} 39... a5 {[%clk 0:01:26]} 40. h5 {[%clk 0:05:34]} 40... gxh5 {[%clk
0:01:43]} 41. f5 {[%clk 0:05:38]} 41... b4 {[%clk 0:01:15]} 42. a4 {[%clk
0:04:53]} 42... c3 {[%clk 0:00:54]} 43. Kb1 {[%clk 0:04:53]} 43... h6 {[%clk
0:00:33]} 44. gxh6 {[%clk 0:02:49]} 1/2-1/2

[Variant "Standard"]
[Site "Europe Echecs"]

[Event "Championnat du monde jeunes U12"]
[Date "2024.11.22"]
[White "Zhandos, Akarys"]
[Black "Petroff, Vlad"]
[WhiteElo "1932"]
[BlackElo "2079"]
[Round "7.16"]
[Result "0-1"]
[TimeControl "5400+30"]

1. e4 {[%clk 1:30:05]} 1... c6 {[%clk 1:30:42]} 2. d4 {[%clk 1:30:28]} 2... d5
{[%clk 1:31:04]} 3. Nc3 {[%clk 1:29:52]} 3... dxe4 {[%clk 1:31:09]} 4. Nxe4
{[%clk 1:30:19]} 4... Nf6 {[%clk 1:31:19]} 5. Nxf6+ {[%clk 1:30:42]} 5... exf6
{[%clk 1:31:44]} 6. c3 {[%clk 1:29:32]} 6... Bd6 {[%clk 1:30:57]} 7. Bd3 {[%clk
1:29:20]} 7... O-O {[%clk 1:29:47]} 8. Qc2 {[%clk 1:29:07]} 8... c5 {[%clk
1:28:18]} 9. Bxh7+ {[%clk 1:08:54]} 9... Kh8 {[%clk 1:28:37]} 10. Bd3 {[%clk
1:07:55]} 10... cxd4 {[%clk 1:26:46]} 11. cxd4 {[%clk 1:04:46]} 11... Nc6 {[%clk
1:23:34]} 12. Ne2 {[%clk 1:04:22]} 12... Nb4 {[%clk 1:19:25]} 13. Qd2 {[%clk
1:04:06]} 13... Nxd3+ {[%clk 1:18:33]} 14. Qxd3 {[%clk 1:04:36]} 14... Qa5+
{[%clk 1:17:04]} 15. Bd2 {[%clk 1:03:57]} 15... Qh5 {[%clk 1:15:57]} 16. Be3
{[%clk 0:58:03]} 16... Bf5 {[%clk 1:12:21]} 17. Qd2 {[%clk 0:55:51]} 17... Rfe8
{[%clk 1:07:58]} 18. f4 {[%clk 0:50:08]} 18... Bg4 {[%clk 0:54:32]} 19. Rc1
{[%clk 0:45:30]} 19... Re7 20. Ng3 {[%clk 0:45:30]} 20... Qb5 0-1

[Variant "Standard"]
[Site "Europe Echecs"]

[Event "Championnat du monde jeunes U12"]
[Date "2024.11.22"]
[White "Zhang, Haoxuan"]
[Black "Filindash, Nikita"]
[WhiteElo "1932"]
[BlackElo "2076"]
[Round "7.17"]
[Result "1/2-1/2"]
[TimeControl "5400+30"]

1. e4 {[%clk 1:30:46]} 1... e6 {[%clk 1:30:55]} 2. d4 {[%clk 1:31:10]} 2... d5
{[%clk 1:31:22]} 3. e5 {[%clk 1:31:20]} 3... c5 {[%clk 1:31:38]} 4. c3 {[%clk
1:31:06]} 4... Nc6 {[%clk 1:32:05]} 5. Nf3 {[%clk 1:31:02]} 5... Qb6 {[%clk
1:32:30]} 6. Be2 {[%clk 1:30:30]} 6... cxd4 {[%clk 1:32:38]} 7. cxd4 {[%clk
1:30:14]} 7... Nh6 {[%clk 1:33:04]} 8. Nc3 Nf5 {[%clk 1:31:54]} 9. Na4 {[%clk
1:29:12]} 9... Qa5+ {[%clk 1:32:03]} 10. Bd2 {[%clk 1:27:58]} 10... Bb4 {[%clk
1:32:03]} 11. Bc3 {[%clk 1:26:38]} 11... b5 {[%clk 1:26:26]} 12. a3 {[%clk
1:25:54]} 12... Bxc3+ {[%clk 1:26:46]} 13. Nxc3 {[%clk 1:26:19]} 13... b4 {[%clk
1:25:17]} 14. g4 {[%clk 1:23:08]} 14... bxc3 {[%clk 0:48:27]} 15. b4 {[%clk
1:23:28]} 15... c2 {[%clk 0:44:46]} 16. Qd2 {[%clk 1:23:54]} 16... Nxb4 {[%clk
0:43:53]} 17. Qxb4 {[%clk 1:14:29]} 17... Qxb4+ {[%clk 0:40:17]} 18. axb4 {[%clk
1:14:47]} 18... Ne7 {[%clk 0:40:38]} 19. Kd2 {[%clk 1:09:36]} 19... Bd7 {[%clk
0:39:57]} 20. Rhc1 {[%clk 0:57:46]} 20... Rb8 {[%clk 0:30:30]} 21. Rxc2 {[%clk
0:57:35]} 21... Rb7 {[%clk 0:22:54]} 22. b5 {[%clk 0:55:52]} 22... O-O {[%clk
0:22:45]} 23. Ra5 {[%clk 0:55:44]} 23... Rfb8 {[%clk 0:22:51]} 24. Rc5 {[%clk
0:55:08]} 24... Nc8 {[%clk 0:20:07]} 25. Ke3 {[%clk 0:54:20]} 25... Nb6 {[%clk
0:17:15]} 26. Nd2 {[%clk 0:54:28]} 26... h6 {[%clk 0:11:24]} 27. Rc3 {[%clk
0:49:41]} 27... Na8 {[%clk 0:06:06]} 28. Rca3 {[%clk 0:47:18]} 28... Bxb5 {[%clk
0:04:58]} 29. Rxa7 {[%clk 0:46:50]} 29... Rxa7 {[%clk 0:05:16]} 30. Rxa7 {[%clk
0:47:15]} 30... Bxe2 {[%clk 0:05:37]} 31. Kxe2 {[%clk 0:47:41]} 31... Nb6 {[%clk
0:05:59]} 32. h4 {[%clk 0:47:22]} 32... Rc8 {[%clk 0:05:57]} 33. h5 {[%clk
0:45:27]} 33... Rc3 {[%clk 0:01:55]} 34. Rb7 {[%clk 0:45:27]} 34... Nc4 {[%clk
0:02:11]} 35. Nxc4 {[%clk 0:45:21]} 35... Rxc4 {[%clk 0:02:40]} 36. Kd3 {[%clk
0:44:51]} 36... Ra4 {[%clk 0:02:51]} 37. Rb3 {[%clk 0:44:17]} 37... Ra1 {[%clk
0:03:10]} 38. Ke3 {[%clk 0:44:37]} 38... Re1+ {[%clk 0:03:19]} 39. Kf3 {[%clk
0:44:41]} 39... Rd1 {[%clk 0:03:48]} 40. Rb4 {[%clk 0:44:31]} 40... Rc1 {[%clk
0:03:48]} 41. Rb8+ {[%clk 0:39:54]} 41... Kh7 {[%clk 0:04:13]} 42. Rb7 {[%clk
0:39:04]} 42... Kg8 {[%clk 0:04:29]} 43. Rb8+ {[%clk 0:38:01]} 43... Kh7 {[%clk
0:04:42]} 1/2-1/2

[Variant "Standard"]
[Site "Europe Echecs"]

[Event "Championnat du monde jeunes U12"]
[Date "2024.11.22"]
[White "Karthi, Jashith"]
[Black "Shirinov, Yashar"]
[WhiteElo "2073"]
[BlackElo "1642"]
[Round "7.18"]
[Result "1-0"]
[TimeControl "5400+30"]

1. d4 {[%clk 1:30:59]} 1... d5 {[%clk 1:30:14]} 2. c4 {[%clk 1:31:24]} 2... e6
{[%clk 1:30:31]} 3. Nc3 {[%clk 1:31:48]} 3... Nf6 {[%clk 1:30:56]} 4. cxd5
{[%clk 1:32:04]} 4... exd5 {[%clk 1:31:22]} 5. Bg5 {[%clk 1:32:28]} 5... Nbd7
{[%clk 1:31:44]} 6. e3 {[%clk 1:32:50]} 6... c6 {[%clk 1:32:06]} 7. Bd3 {[%clk
1:33:13]} 7... Be7 {[%clk 1:32:27]} 8. Qc2 {[%clk 1:32:39]} 8... O-O {[%clk
1:32:33]} 9. Nge2 {[%clk 1:32:43]} 9... Re8 {[%clk 1:31:28]} 10. O-O {[%clk
1:31:38]} 10... Nf8 {[%clk 1:31:13]} 11. Rae1 {[%clk 1:29:34]} 11... Ng6 {[%clk
1:20:46]} 12. Ng3 {[%clk 1:28:10]} 12... h6 {[%clk 1:17:19]} 13. Bxf6 {[%clk
1:27:20]} 13... Bxf6 {[%clk 1:17:45]} 14. Bxg6 {[%clk 1:27:18]} 14... fxg6
{[%clk 1:18:11]} 15. Qxg6 {[%clk 1:27:22]} 15... Re6 {[%clk 1:18:36]} 16. Qd3
{[%clk 1:26:28]} 16... b5 {[%clk 1:18:18]} 17. Nce2 {[%clk 1:26:48]} 17... a5
{[%clk 1:18:34]} 18. Nf4 {[%clk 1:27:08]} 18... Rd6 {[%clk 1:18:21]} 19. Nf5
{[%clk 1:26:43]} 19... Rd7 {[%clk 1:18:27]} 20. Rc1 {[%clk 1:26:58]} 20... Rc7
{[%clk 1:18:44]} 21. Ng3 {[%clk 1:22:18]} 21... b4 {[%clk 1:18:27]} 22. Qg6
{[%clk 1:21:50]} 22... Ba6 {[%clk 1:18:11]} 23. Ne6 {[%clk 1:22:03]} 23... Qd6
{[%clk 1:17:54]} 24. Nxc7 {[%clk 1:22:25]} 24... Qxc7 {[%clk 1:18:22]} 25. Rfd1
{[%clk 1:22:39]} 25... Rf8 {[%clk 1:17:55]} 26. Nh5 {[%clk 1:22:15]} 26... Be2
{[%clk 1:17:05]} 27. Nxf6+ {[%clk 1:22:37]} 27... Rxf6 {[%clk 1:17:32]} 28. Qe8+
{[%clk 1:23:01]} 28... Kh7 {[%clk 1:17:25]} 29. Re1 {[%clk 1:23:11]} 29... Bd3
{[%clk 1:17:53]} 30. Qe5 {[%clk 1:23:24]} 30... Qf7 {[%clk 1:18:12]} 31. f3
{[%clk 1:21:46]} 31... Rf5 {[%clk 1:17:45]} 32. Qg3 {[%clk 1:20:59]} 32... Rg5
{[%clk 1:17:45]} 33. Qf2 {[%clk 1:21:19]} 33... Qg6 {[%clk 1:17:51]} 34. h4
{[%clk 1:17:39]} 34... Rf5 {[%clk 1:17:58]} 35. Qd2 {[%clk 1:15:29]} 35... Bb5
{[%clk 1:14:20]} 36. Qc2 {[%clk 1:14:52]} 36... h5 {[%clk 1:14:09]} 37. Rcd1
{[%clk 1:14:29]} 37... Kg8 {[%clk 1:13:53]} 38. Qf2 {[%clk 1:09:25]} 38... a4
{[%clk 1:11:30]} 39. e4 {[%clk 1:09:32]} 39... dxe4 {[%clk 1:11:52]} 40. Rxe4
{[%clk 1:09:56]} 40... Bc4 {[%clk 1:12:09]} 41. Re5 {[%clk 1:08:03]} 41... Bxa2
{[%clk 1:10:17]} 42. Qc2 {[%clk 1:06:37]} 42... Rg5 {[%clk 1:08:07]} 43. Qxg6
{[%clk 1:06:56]} 43... Rxg6 {[%clk 1:08:34]} 44. Ra1 {[%clk 1:06:31]} 44... Bb3
{[%clk 1:08:38]} 45. Re8+ {[%clk 1:06:17]} 45... Kf7 {[%clk 1:07:46]} 46. Rb8
{[%clk 1:06:41]} 46... Ke6 {[%clk 1:07:11]} 47. Rxb4 {[%clk 1:06:53]} 47... Kd5
{[%clk 1:07:39]} 48. Re1 {[%clk 1:06:41]} 48... Re6 {[%clk 1:06:32]} 49. Rxe6
{[%clk 1:07:07]} 49... Kxe6 {[%clk 1:06:57]} 50. Kf2 {[%clk 1:07:32]} 50... g6
{[%clk 1:07:19]} 51. Ke3 {[%clk 1:07:53]} 51... Kd5 {[%clk 1:07:45]} 52. Kd2
{[%clk 1:08:14]} 52... Ke6 {[%clk 1:07:18]} 53. Kc3 {[%clk 1:08:39]} 53... Bd1
{[%clk 1:07:40]} 54. Rb8 {[%clk 1:09:00]} 54... Be2 {[%clk 1:07:23]} 55. Re8+
{[%clk 1:09:28]} 55... Kd5 1-0

[Variant "Standard"]
[Site "Europe Echecs"]

[Event "Championnat du monde jeunes U12"]
[Date "2024.11.22"]
[White "Kleschevnikov, Arseny"]
[Black "Minga-Nagy, Abel Inti"]
[WhiteElo "1893"]
[BlackElo "2033"]
[Round "7.19"]
[Result "1-0"]
[TimeControl "5400+30"]

1. d4 {[%clk 1:30:58]} 1... Nf6 {[%clk 1:30:47]} 2. c4 {[%clk 1:31:24]} 2... e6
{[%clk 1:31:14]} 3. Nc3 {[%clk 1:31:51]} 3... Bb4 {[%clk 1:31:38]} 4. e3 {[%clk
1:32:18]} 4... d6 {[%clk 1:31:22]} 5. Ne2 {[%clk 1:32:33]} 5... O-O {[%clk
1:31:41]} 6. a3 {[%clk 1:32:41]} 6... Bxc3+ {[%clk 1:31:57]} 7. Nxc3 {[%clk
1:33:09]} 7... Nbd7 {[%clk 1:31:10]} 8. Be2 {[%clk 1:31:42]} 8... e5 {[%clk
1:30:25]} 9. O-O {[%clk 1:30:23]} 9... Re8 {[%clk 1:29:45]} 10. b4 {[%clk
1:14:05]} 10... Nf8 {[%clk 1:26:23]} 11. Bb2 {[%clk 1:07:48]} 11... Ng6 {[%clk
1:24:22]} 12. Qd2 {[%clk 1:02:28]} 12... exd4 {[%clk 1:12:42]} 13. Qxd4 {[%clk
0:59:25]} 13... Ne5 {[%clk 1:07:29]} 14. Nd5 {[%clk 0:51:21]} 14... Nxd5 {[%clk
1:06:34]} 15. cxd5 {[%clk 0:51:35]} 15... f6 {[%clk 1:06:08]} 16. Rac1 {[%clk
0:43:47]} 16... Bf5 {[%clk 1:02:13]} 17. e4 {[%clk 0:38:30]} 17... Bg6 {[%clk
0:59:42]} 18. f3 {[%clk 0:28:56]} 18... Qd7 {[%clk 0:58:47]} 19. f4 {[%clk
0:26:32]} 19... c5 {[%clk 0:44:39]} 20. bxc5 {[%clk 0:24:48]} 20... dxc5 {[%clk
0:45:01]} 21. Rxc5 {[%clk 0:24:15]} 21... b6 {[%clk 0:45:03]} 22. Rcc1 {[%clk
0:23:20]} 22... Nc6 {[%clk 0:44:08]} 23. dxc6 {[%clk 0:22:14]} 23... Qe7 {[%clk
0:44:21]} 24. f5 {[%clk 0:21:27]} 24... Bf7 {[%clk 0:44:47]} 25. Bc4 {[%clk
0:21:49]} 25... Bxc4 {[%clk 0:45:03]} 26. Qxc4+ {[%clk 0:22:17]} 26... Kh8
{[%clk 0:45:28]} 27. Rfe1 {[%clk 0:21:40]} 27... Rac8 {[%clk 0:45:48]} 28. e5
{[%clk 0:21:46]} 28... fxe5 {[%clk 0:46:06]} 29. Rxe5 {[%clk 0:21:30]} 29... Qg5
{[%clk 0:46:30]} 30. Rxe8+ {[%clk 0:21:14]} 30... Rxe8 {[%clk 0:46:54]} 31. c7
{[%clk 0:20:33]} 31... Qe3+ {[%clk 0:47:20]} 32. Kh1 {[%clk 0:20:06]} 32... b5
{[%clk 0:47:46]} 33. Qf1 {[%clk 0:20:00]} 33... Rc8 {[%clk 0:48:02]} 34. f6
{[%clk 0:20:20]} 34... Qf3 {[%clk 0:48:20]} 1-0

[Variant "Standard"]
[Site "Europe Echecs"]